[Event "*** SCC Grand Prix: Titled Tuesday Blitz"]
[Site "Chess.com"]
[Date "2020.09.29"]
[Round "3"]
[White "Srisshhhtea"]
[Black "vaishali2001"]
[Result "0-1"]
[WhiteElo "2279"]
[BlackElo "2503"]
[TimeControl "180+1"]
[EndTime "10:28:47 PDT"]
[Termination "vaishali2001 won by resignation"]

1. d4 {[%clk 0:02:59]} 1... Nf6 {[%clk 0:02:57.1]} 2. c4 {[%clk 0:02:59.2]} 2...
c5 {[%clk 0:02:56.5]} 3. d5 {[%clk 0:02:58.8]} 3... b5 {[%clk 0:02:56.4]} 4. Nf3
{[%clk 0:02:53.2]} 4... g6 {[%clk 0:02:44.7]} 5. Nbd2 {[%clk 0:02:50.1]} 5...
bxc4 {[%clk 0:02:39]} 6. Nxc4 {[%clk 0:02:49.4]} 6... d6 {[%clk 0:02:36.8]} 7.
Bd2 {[%clk 0:02:01]} 7... Bg7 {[%clk 0:02:25.1]} 8. Ba5 {[%clk 0:02:01]} 8...
Qd7 {[%clk 0:02:22]} 9. Bc3 {[%clk 0:02:00.4]} 9... O-O {[%clk 0:02:19.5]} 10.
g3 {[%clk 0:01:58.9]} 10... Ba6 {[%clk 0:01:49]} 11. Ne3 {[%clk 0:01:55.9]}
11... Qb7 {[%clk 0:01:09.6]} 12. Bg2 {[%clk 0:01:55.4]} 12... Nbd7 {[%clk
0:01:09.7]} 13. O-O {[%clk 0:01:55.2]} 13... Rab8 {[%clk 0:01:07.6]} 14. Nd2
{[%clk 0:01:42]} 14... Nb6 {[%clk 0:00:59.2]} 15. Nb3 {[%clk 0:01:41.9]} 15...
Na4 {[%clk 0:00:45.1]} 16. Rb1 {[%clk 0:01:34.5]} 16... Nxc3 {[%clk 0:00:31.5]}
17. bxc3 {[%clk 0:01:35.4]} 17... Qb5 {[%clk 0:00:28.6]} 18. c4 {[%clk
0:01:32.9]} 18... Qa4 {[%clk 0:00:28.7]} 19. Qc2 {[%clk 0:01:32]} 19... Rb4
{[%clk 0:00:27.5]} 20. Na1 {[%clk 0:01:14.4]} 20... Qxc2 {[%clk 0:00:10.1]} 21.
Naxc2 {[%clk 0:01:15.3]} 21... Ra4 {[%clk 0:00:07]} 22. a3 {[%clk 0:01:09.2]}
22... Bxc4 {[%clk 0:00:07.1]} 23. Nxc4 {[%clk 0:01:07]} 23... Rxc4 {[%clk
0:00:08]} 24. Ne3 {[%clk 0:01:07.9]} 24... Ra4 {[%clk 0:00:07.8]} 25. Rb7 {[%clk
0:01:05.3]} 25... Re8 {[%clk 0:00:08]} 26. Nc2 {[%clk 0:01:02]} 26... h5 {[%clk
0:00:07]} 27. Rfb1 {[%clk 0:01:01.9]} 27... Ng4 {[%clk 0:00:06.6]} 28. Rb8
{[%clk 0:00:59.4]} 28... Rxb8 {[%clk 0:00:06.5]} 29. Rxb8+ {[%clk 0:01:00.3]}
29... Kh7 {[%clk 0:00:06.7]} 30. e3 {[%clk 0:00:59]} 30... Ne5 {[%clk
0:00:06.1]} 31. Rb7 {[%clk 0:00:55.2]} 31... Bf6 {[%clk 0:00:06]} 32. Bf1 {[%clk
0:00:54.2]} 32... Nf3+ {[%clk 0:00:03.8]} 33. Kg2 {[%clk 0:00:53.7]} 33... Nd2
{[%clk 0:00:04]} 34. Bb5 {[%clk 0:00:52.4]} 34... Ra5 {[%clk 0:00:02.8]} 35. a4
{[%clk 0:00:51.2]} 35... Ne4 {[%clk 0:00:02.5]} 36. Na3 {[%clk 0:00:49]} 36...
a6 {[%clk 0:00:01.4]} 37. Nc4 {[%clk 0:00:49.4]} 37... axb5 {[%clk 0:00:01.4]}
38. Nxa5 {[%clk 0:00:49.7]} 38... bxa4 {[%clk 0:00:02]} 39. Ra7 {[%clk
0:00:42.8]} 39... Nc3 {[%clk 0:00:02.4]} 40. Nc4 {[%clk 0:00:40.6]} 40... Nxd5
{[%clk 0:00:02.7]} 41. Rxa4 {[%clk 0:00:40.4]} 41... Kg7 {[%clk 0:00:03.4]} 42.
Ra2 {[%clk 0:00:39.5]} 42... Nc3 {[%clk 0:00:03.7]} 43. Rd2 {[%clk 0:00:39.4]}
43... Nb5 {[%clk 0:00:03.8]} 44. Nb6 {[%clk 0:00:39.1]} 44... Nc7 {[%clk
0:00:04]} 45. Nd5 {[%clk 0:00:39.3]} 45... Nxd5 {[%clk 0:00:03.9]} 46. Rxd5
{[%clk 0:00:40.2]} 46... Kf8 {[%clk 0:00:04.4]} 47. Kf1 {[%clk 0:00:40.5]} 47...
Ke8 {[%clk 0:00:04.8]} 48. Ke2 {[%clk 0:00:40.9]} 48... Kd7 {[%clk 0:00:05.5]}
49. Rd1 {[%clk 0:00:40.9]} 49... Kc6 {[%clk 0:00:05.4]} 50. Kd3 {[%clk
0:00:41.1]} 50... d5 {[%clk 0:00:05.3]} 51. e4 {[%clk 0:00:41.1]} 51... c4+
{[%clk 0:00:04.6]} 52. Ke3 {[%clk 0:00:39]} 52... d4+ {[%clk 0:00:05]} 53. Kf4
{[%clk 0:00:38.4]} 53... e5+ {[%clk 0:00:04.8]} 54. Kf3 {[%clk 0:00:38.9]} 54...
Kc5 {[%clk 0:00:04.9]} 55. Ke2 {[%clk 0:00:39.4]} 55... d3+ {[%clk 0:00:04.1]}
56. Ke3 {[%clk 0:00:38.9]} 56... Bd8 {[%clk 0:00:04.1]} 57. f4 {[%clk
0:00:38.6]} 57... Bb6 {[%clk 0:00:02.9]} 58. Rb1 {[%clk 0:00:36.2]} 58... Ba7
{[%clk 0:00:02.6]} 59. fxe5 {[%clk 0:00:35]} 59... Kc6+ {[%clk 0:00:01.1]} 60.
Kd2 {[%clk 0:00:35.3]} 60... Bd4 {[%clk 0:00:01.9]} 61. Rf1 {[%clk 0:00:34.1]}
61... Bxe5 {[%clk 0:00:02.1]} 62. Rxf7 {[%clk 0:00:34.6]} 62... Kc5 {[%clk
0:00:02.5]} 63. Re7 {[%clk 0:00:28.8]} 63... Kd4 {[%clk 0:00:02.4]} 64. Rd7+
{[%clk 0:00:29.1]} 64... Kxe4 {[%clk 0:00:02.9]} 65. Rd5 {[%clk 0:00:29.8]}
65... c3+ {[%clk 0:00:03.1]} 66. Kd1 {[%clk 0:00:27.9]} 66... Kxd5 {[%clk
0:00:04]} 0-1

[Event "*** SCC Grand Prix: Titled Tuesday Blitz"]
[Site "Chess.com"]
[Date "2020.09.29"]
[Round "3"]
[White "sergiochess83"]
[Black "m_ezat"]
[Result "1-0"]
[WhiteElo "2808"]
[BlackElo "2618"]
[TimeControl "180+1"]
[EndTime "10:28:49 PDT"]
[Termination "sergiochess83 won on time"]

1. c4 {[%clk 0:03:00.9]} 1... Nf6 {[%clk 0:02:53.2]} 2. Nf3 {[%clk 0:02:58.3]}
2... g6 {[%clk 0:02:53.6]} 3. Nc3 {[%clk 0:02:57.7]} 3... Bg7 {[%clk 0:02:54.1]}
4. e4 {[%clk 0:02:54.9]} 4... O-O {[%clk 0:02:54]} 5. d4 {[%clk 0:02:54.8]} 5...
d6 {[%clk 0:02:54.5]} 6. Be2 {[%clk 0:02:54.6]} 6... e5 {[%clk 0:02:55]} 7. Be3
{[%clk 0:02:54.4]} 7... exd4 {[%clk 0:02:50.5]} 8. Nxd4 {[%clk 0:02:53.5]} 8...
Re8 {[%clk 0:02:50.6]} 9. f3 {[%clk 0:02:53.8]} 9... c6 {[%clk 0:02:50.2]} 10.
Bf2 {[%clk 0:02:53]} 10... d5 {[%clk 0:02:50.5]} 11. exd5 {[%clk 0:02:51.2]}
11... cxd5 {[%clk 0:02:51.1]} 12. c5 {[%clk 0:02:51.8]} 12... Nc6 {[%clk
0:02:51.5]} 13. O-O {[%clk 0:02:50.4]} 13... Re5 {[%clk 0:02:50.1]} 14. Qd2
{[%clk 0:02:41.2]} 14... Qf8 {[%clk 0:02:43.9]} 15. Nxc6 {[%clk 0:02:25.8]}
15... bxc6 {[%clk 0:02:39.8]} 16. Bd4 {[%clk 0:02:26.4]} 16... Bh6 {[%clk
0:02:33]} 17. Qd1 {[%clk 0:01:52.1]} 17... Be3+ {[%clk 0:02:22.3]} 18. Bxe3
{[%clk 0:01:28.5]} 18... Rxe3 {[%clk 0:02:21]} 19. Qd4 {[%clk 0:01:29.4]} 19...
Qe7 {[%clk 0:02:17.6]} 20. b4 {[%clk 0:01:23.7]} 20... Nd7 {[%clk 0:01:41.4]}
21. Kf2 {[%clk 0:01:02.6]} 21... Re6 {[%clk 0:01:32.3]} 22. Rfe1 {[%clk
0:00:53.2]} 22... a5 {[%clk 0:01:28.8]} 23. a3 {[%clk 0:00:52.5]} 23... h5
{[%clk 0:01:18.2]} 24. g3 {[%clk 0:00:49.3]} 24... Rb8 {[%clk 0:00:53]} 25. Rab1
{[%clk 0:00:43.7]} 25... Nf8 {[%clk 0:00:47.2]} 26. b5 {[%clk 0:00:41.8]} 26...
Bd7 {[%clk 0:00:31.5]} 27. Bd3 {[%clk 0:00:19.4]} 27... h4 {[%clk 0:00:24.9]}
28. gxh4 {[%clk 0:00:18.9]} 28... Rxe1 {[%clk 0:00:19.6]} 29. Rxe1 {[%clk
0:00:18.7]} 29... Ne6 {[%clk 0:00:20]} 30. bxc6 {[%clk 0:00:16.2]} 30... Bxc6
{[%clk 0:00:19]} 31. Nxd5 {[%clk 0:00:16.2]} 31... Bxd5 {[%clk 0:00:19.2]} 32.
Qxd5 {[%clk 0:00:16.9]} 32... Rd8 {[%clk 0:00:19.5]} 33. Qc4 {[%clk 0:00:16.4]}
33... Qf6 {[%clk 0:00:16.3]} 34. Bf1 {[%clk 0:00:13]} 34... Rd4 {[%clk
0:00:15.8]} 35. Qc3 {[%clk 0:00:10.8]} 35... Qxh4+ {[%clk 0:00:15.6]} 36. Kg1
{[%clk 0:00:11.1]} 36... Nf4 {[%clk 0:00:15.7]} 37. c6 {[%clk 0:00:08.6]} 37...
Qg5+ {[%clk 0:00:12.5]} 38. Kh1 {[%clk 0:00:08.2]} 38... Rd8 {[%clk 0:00:12.5]}
39. c7 {[%clk 0:00:08.1]} 39... Rc8 {[%clk 0:00:13]} 40. Rc1 {[%clk 0:00:08]}
40... Qh5 {[%clk 0:00:11.4]} 41. Qe3 {[%clk 0:00:07.5]} 41... Qf5 {[%clk
0:00:10.8]} 42. Ba6 {[%clk 0:00:06.4]} 42... Rxc7 {[%clk 0:00:08.7]} 43. Rxc7
{[%clk 0:00:05.1]} 43... Qb1+ {[%clk 0:00:08.3]} 44. Qg1 {[%clk 0:00:05.4]}
44... Qf5 {[%clk 0:00:04.3]} 45. Qf1 {[%clk 0:00:05.1]} 45... Ne6 {[%clk
0:00:04]} 46. Rc4 {[%clk 0:00:04.3]} 46... Kg7 {[%clk 0:00:04.6]} 47. Re4 {[%clk
0:00:03.4]} 47... Ng5 {[%clk 0:00:03.6]} 48. Re3 {[%clk 0:00:03.8]} 48... Qf4
{[%clk 0:00:03.9]} 49. Rc3 {[%clk 0:00:03.5]} 49... Ne4 {[%clk 0:00:03]} 50.
fxe4 {[%clk 0:00:02.8]} 50... Qxe4+ {[%clk 0:00:03.2]} 51. Rf3 {[%clk 0:00:03]}
51... g5 {[%clk 0:00:02.3]} 52. Bd3 {[%clk 0:00:03.2]} 52... Qd5 {[%clk
0:00:02.1]} 53. h3 {[%clk 0:00:02.8]} 53... f5 {[%clk 0:00:01.8]} 54. Bxf5
{[%clk 0:00:02.3]} 1-0

[Event "*** SCC Grand Prix: Titled Tuesday Blitz"]
[Site "Chess.com"]
[Date "2020.09.29"]
[Round "3"]
[White "Bulldog167"]
[Black "KyronGriffith"]
[Result "1-0"]
[WhiteElo "2801"]
[BlackElo "2513"]
[TimeControl "180+1"]
[EndTime "10:28:49 PDT"]
[Termination "Bulldog167 won on time"]

1. d4 {[%clk 0:03:00.9]} 1... Nf6 {[%clk 0:02:59.8]} 2. c4 {[%clk 0:03:01.4]}
2... e5 {[%clk 0:03:00.2]} 3. dxe5 {[%clk 0:03:01.5]} 3... Ng4 {[%clk
0:03:00.9]} 4. Bf4 {[%clk 0:03:01.1]} 4... Bb4+ {[%clk 0:02:59.2]} 5. Nc3 {[%clk
0:03:01]} 5... Bxc3+ {[%clk 0:02:58]} 6. bxc3 {[%clk 0:03:01]} 6... Nc6 {[%clk
0:02:58.5]} 7. Nf3 {[%clk 0:03:00.6]} 7... Qe7 {[%clk 0:02:59]} 8. Qd5 {[%clk
0:03:00.1]} 8... f6 {[%clk 0:02:59.7]} 9. exf6 {[%clk 0:02:59.8]} 9... Nxf6
{[%clk 0:03:00.6]} 10. Qd3 {[%clk 0:03:00.2]} 10... d6 {[%clk 0:02:57.4]} 11. e3
{[%clk 0:03:00.2]} 11... Ne5 {[%clk 0:02:57.8]} 12. Nxe5 {[%clk 0:02:48.5]}
12... dxe5 {[%clk 0:02:58.7]} 13. Bg3 {[%clk 0:02:48.9]} 13... Bd7 {[%clk
0:02:55.2]} 14. Be2 {[%clk 0:02:46.3]} 14... O-O-O {[%clk 0:02:53.9]} 15. Qc2
{[%clk 0:02:35.6]} 15... Qc5 {[%clk 0:02:34]} 16. O-O {[%clk 0:02:32.7]} 16...
h5 {[%clk 0:02:32.5]} 17. h3 {[%clk 0:01:31.5]} 17... h4 {[%clk 0:01:50.1]} 18.
Bh2 {[%clk 0:01:31.7]} 18... e4 {[%clk 0:01:44.1]} 19. Rfd1 {[%clk 0:01:22.8]}
19... Rh6 {[%clk 0:01:28.5]} 20. Rd4 {[%clk 0:01:21.2]} 20... Rg6 {[%clk
0:01:28.8]} 21. Rad1 {[%clk 0:01:17.5]} 21... Qg5 {[%clk 0:01:18.1]} 22. Bf1
{[%clk 0:01:12.7]} 22... Re8 {[%clk 0:01:11.1]} 23. Bf4 {[%clk 0:01:12.1]} 23...
Qc5 {[%clk 0:01:08.3]} 24. Kh1 {[%clk 0:01:07.3]} 24... b6 {[%clk 0:01:00.7]}
25. Qb1 {[%clk 0:00:49]} 25... Re7 {[%clk 0:00:47.9]} 26. Qb4 {[%clk 0:00:48.1]}
26... Be6 {[%clk 0:00:38]} 27. Qxc5 {[%clk 0:00:45.1]} 27... bxc5 {[%clk
0:00:38.9]} 28. Rd8+ {[%clk 0:00:45.7]} 28... Kb7 {[%clk 0:00:38.9]} 29. Rb1+
{[%clk 0:00:46.3]} 29... Kc6 {[%clk 0:00:33.1]} 30. Be2 {[%clk 0:00:40.2]} 30...
Rd7 {[%clk 0:00:31.2]} 31. Rxd7 {[%clk 0:00:36.8]} 31... Nxd7 {[%clk 0:00:32.1]}
32. Bd1 {[%clk 0:00:35.4]} 32... Nb6 {[%clk 0:00:32.6]} 33. Bh5 {[%clk
0:00:24.9]} 33... Rf6 {[%clk 0:00:32.1]} 34. Be8+ {[%clk 0:00:24.6]} 34... Nd7
{[%clk 0:00:30.7]} 35. Kg1 {[%clk 0:00:21.9]} 35... Rf8 {[%clk 0:00:30.9]} 36.
Bg6 {[%clk 0:00:21.9]} 36... Nf6 {[%clk 0:00:25.4]} 37. Bg5 {[%clk 0:00:18.5]}
37... Bxc4 {[%clk 0:00:24.4]} 38. Bxf6 {[%clk 0:00:16.1]} 38... Rxf6 {[%clk
0:00:25.3]} 39. Bxe4+ {[%clk 0:00:16.6]} 39... Kd7 {[%clk 0:00:21.3]} 40. Rd1+
{[%clk 0:00:15.7]} 40... Ke7 {[%clk 0:00:19.4]} 41. a3 {[%clk 0:00:15.4]} 41...
Ra6 {[%clk 0:00:19.4]} 42. Bd5 {[%clk 0:00:07.4]} 42... Bxd5 {[%clk 0:00:15.4]}
43. Rxd5 {[%clk 0:00:08.3]} 43... Rxa3 {[%clk 0:00:15.9]} 44. Rxc5 {[%clk
0:00:08.7]} 44... Kd6 {[%clk 0:00:16.6]} 45. Rc4 {[%clk 0:00:08]} 45... g5
{[%clk 0:00:17.2]} 46. g4 {[%clk 0:00:04.9]} 46... a5 {[%clk 0:00:17.4]} 47. Kg2
{[%clk 0:00:04.9]} 47... Ra1 {[%clk 0:00:17.4]} 48. Kf3 {[%clk 0:00:04.8]} 48...
a4 {[%clk 0:00:17.9]} 49. Ke4 {[%clk 0:00:05]} 49... a3 {[%clk 0:00:18.4]} 50.
Ra4 {[%clk 0:00:05.4]} 50... a2 {[%clk 0:00:18.5]} 51. Kf5 {[%clk 0:00:06]}
51... Rh1 {[%clk 0:00:16.9]} 52. Rxa2 {[%clk 0:00:05.8]} 52... Rxh3 {[%clk
0:00:17.8]} 53. Kxg5 {[%clk 0:00:06.4]} 53... Rh2 {[%clk 0:00:18.1]} 54. Ra6+
{[%clk 0:00:02.8]} 54... Kd5 {[%clk 0:00:17.8]} 55. Rh6 {[%clk 0:00:03.1]} 55...
h3 {[%clk 0:00:18.1]} 56. f4 {[%clk 0:00:02.8]} 56... Rh1 {[%clk 0:00:14.6]} 57.
f5 {[%clk 0:00:03.4]} 57... c5 {[%clk 0:00:14.6]} 58. f6 {[%clk 0:00:03.9]}
58... Ke6 {[%clk 0:00:15.3]} 59. Kg6 {[%clk 0:00:04.2]} 59... Rf1 {[%clk
0:00:14.8]} 60. g5 {[%clk 0:00:04.6]} 60... Rf3 {[%clk 0:00:12.8]} 61. Kg7
{[%clk 0:00:05.1]} 61... Rf5 {[%clk 0:00:05.1]} 62. f7+ {[%clk 0:00:04.6]} 62...
Ke7 {[%clk 0:00:03.9]} 63. g6 {[%clk 0:00:04.8]} 1-0

[Event "*** SCC Grand Prix: Titled Tuesday Blitz"]
[Site "Chess.com"]
[Date "2020.09.29"]
[Round "3"]
[White "crazy_but_lazy"]
[Black "zmeeed67"]
[Result "0-1"]
[WhiteElo "2532"]
[BlackElo "2376"]
[TimeControl "180+1"]
[EndTime "10:29:00 PDT"]
[Termination "zmeeed67 won by resignation"]

1. e4 {[%clk 0:03:00.9]} 1... Nc6 {[%clk 0:03:00]} 2. Nf3 {[%clk 0:03:00]} 2...
d6 {[%clk 0:03:00.1]} 3. Nc3 {[%clk 0:02:55.8]} 3... Nf6 {[%clk 0:03:00]} 4. d4
{[%clk 0:02:54.4]} 4... Bg4 {[%clk 0:02:59.7]} 5. Be2 {[%clk 0:02:50.1]} 5... e5
{[%clk 0:02:59.3]} 6. d5 {[%clk 0:02:43.7]} 6... Ne7 {[%clk 0:02:59.1]} 7. h3
{[%clk 0:02:34.7]} 7... Bd7 {[%clk 0:02:58.8]} 8. Be3 {[%clk 0:02:33]} 8... Ng6
{[%clk 0:02:59.1]} 9. Qd2 {[%clk 0:02:32.8]} 9... Be7 {[%clk 0:02:59.1]} 10. g4
{[%clk 0:02:28.7]} 10... a6 {[%clk 0:02:59.4]} 11. a4 {[%clk 0:02:28.1]} 11...
O-O {[%clk 0:02:58.1]} 12. O-O-O {[%clk 0:02:21.8]} 12... b5 {[%clk 0:02:56.1]}
13. Rdg1 {[%clk 0:02:13.3]} 13... b4 {[%clk 0:02:55.6]} 14. Nb1 {[%clk
0:02:11.2]} 14... Nxe4 {[%clk 0:02:54.5]} 15. Qd3 {[%clk 0:02:09]} 15... Nf6
{[%clk 0:02:53.7]} 16. Nbd2 {[%clk 0:02:01.2]} 16... Bxa4 {[%clk 0:02:52.1]} 17.
h4 {[%clk 0:01:56.9]} 17... Bb5 {[%clk 0:02:51.8]} 18. Nc4 {[%clk 0:01:52.6]}
18... e4 {[%clk 0:02:50.2]} 19. Qd4 {[%clk 0:01:52.9]} 19... exf3 {[%clk
0:02:49.9]} 20. Bxf3 {[%clk 0:01:53.8]} 20... Bxc4 {[%clk 0:02:48.2]} 21. Qxc4
{[%clk 0:01:54.7]} 21... Ne5 {[%clk 0:02:48.5]} 22. Qe2 {[%clk 0:01:53.9]} 22...
Nxf3 {[%clk 0:02:48.5]} 23. Qxf3 {[%clk 0:01:54.5]} 23... b3 {[%clk 0:02:43.2]}
24. g5 {[%clk 0:01:52.7]} 24... Nd7 {[%clk 0:02:43.1]} 25. Bd4 {[%clk
0:01:52.6]} 25... Ne5 {[%clk 0:02:41.1]} 26. Qc3 {[%clk 0:01:47.5]} 26... bxc2
{[%clk 0:02:38.7]} 27. f4 {[%clk 0:01:47.5]} 27... f6 {[%clk 0:01:52.4]} 28. h5
{[%clk 0:01:47.8]} 28... fxg5 {[%clk 0:01:45.6]} 29. fxe5 {[%clk 0:01:47.8]}
29... dxe5 {[%clk 0:01:45.4]} 30. Bxe5 {[%clk 0:01:47.2]} 30... Bf6 {[%clk
0:01:44.7]} 31. h6 {[%clk 0:01:45]} 31... g6 {[%clk 0:01:34.2]} 32. Rf1 {[%clk
0:01:27.6]} 32... Bxe5 {[%clk 0:00:53.8]} 33. Qxe5 {[%clk 0:01:28.5]} 33...
Rxf1+ {[%clk 0:00:53.7]} 34. Rxf1 {[%clk 0:01:28.7]} 34... Qd7 {[%clk
0:00:54.2]} 35. Qxg5 {[%clk 0:01:21.1]} 35... Re8 {[%clk 0:00:50.6]} 36. Qf6
{[%clk 0:01:19.2]} 36... Qe7 {[%clk 0:00:39.7]} 37. Qxa6 {[%clk 0:01:05]} 37...
Qe3+ {[%clk 0:00:36.4]} 38. Kxc2 {[%clk 0:01:05.2]} 38... Qxh6 {[%clk
0:00:34.2]} 39. Qc4 {[%clk 0:00:54.8]} 39... Qh2+ {[%clk 0:00:26.1]} 40. Kb1
{[%clk 0:00:53.5]} 40... Qd6 {[%clk 0:00:26.3]} 41. Qd4 {[%clk 0:00:41.9]} 41...
Re5 {[%clk 0:00:25.2]} 42. Qf4 {[%clk 0:00:36.9]} 42... Rf5 {[%clk 0:00:21.2]}
43. Qc1 {[%clk 0:00:34.2]} 43... Qxd5 {[%clk 0:00:19.7]} 44. Rxf5 {[%clk
0:00:18]} 44... Qxf5+ {[%clk 0:00:19.4]} 45. Ka2 {[%clk 0:00:18.7]} 45... c5
{[%clk 0:00:20]} 46. Ka3 {[%clk 0:00:17.8]} 46... Kg7 {[%clk 0:00:19.8]} 47.
Qc3+ {[%clk 0:00:16.9]} 47... Kh6 {[%clk 0:00:20]} 48. Qe3+ {[%clk 0:00:15.9]}
48... Kg7 {[%clk 0:00:19.2]} 49. Qe7+ {[%clk 0:00:15.1]} 49... Kg8 {[%clk
0:00:18.9]} 50. Qe8+ {[%clk 0:00:12.4]} 50... Qf8 {[%clk 0:00:18.7]} 51. Qe6+
{[%clk 0:00:12.7]} 51... Kg7 {[%clk 0:00:18.8]} 52. Qe5+ {[%clk 0:00:13.1]}
52... Kg8 {[%clk 0:00:18.4]} 53. Qe6+ {[%clk 0:00:13.1]} 53... Qf7 {[%clk
0:00:18.3]} 54. Qc8+ {[%clk 0:00:13.4]} 54... Kg7 {[%clk 0:00:16.9]} 55. Qxc5
{[%clk 0:00:13.4]} 55... Qf8 {[%clk 0:00:17.1]} 56. b4 {[%clk 0:00:13.2]} 56...
Qxc5 {[%clk 0:00:16.6]} 57. bxc5 {[%clk 0:00:14.1]} 57... Kf7 {[%clk 0:00:16.8]}
58. Kb4 {[%clk 0:00:14.7]} 58... Ke8 {[%clk 0:00:16.7]} 59. Kb5 {[%clk
0:00:15.4]} 59... Kd8 {[%clk 0:00:17.2]} 60. Kc6 {[%clk 0:00:10.8]} 60... Kc8
{[%clk 0:00:15.1]} 61. Kd6 {[%clk 0:00:11.4]} 61... g5 {[%clk 0:00:15.3]} 62.
Ke5 {[%clk 0:00:11.8]} 62... h5 {[%clk 0:00:15]} 63. Kf5 {[%clk 0:00:11.2]}
63... g4 {[%clk 0:00:15.2]} 64. Kf4 {[%clk 0:00:09.8]} 64... Kc7 {[%clk
0:00:15.3]} 65. Kg3 {[%clk 0:00:10.5]} 65... Kc6 {[%clk 0:00:15.5]} 66. Kh4
{[%clk 0:00:11.4]} 66... Kxc5 {[%clk 0:00:15.6]} 67. Kg3 {[%clk 0:00:12.3]}
67... Kd4 {[%clk 0:00:15.4]} 68. Kh4 {[%clk 0:00:13.2]} 68... Ke3 {[%clk
0:00:15.6]} 69. Kg3 {[%clk 0:00:14.1]} 69... Ke4 {[%clk 0:00:15.8]} 70. Kh4
{[%clk 0:00:15]} 70... Kf3 {[%clk 0:00:16]} 71. Kxh5 {[%clk 0:00:14.1]} 71... g3
{[%clk 0:00:16.2]} 72. Kh6 {[%clk 0:00:15]} 72... g2 {[%clk 0:00:16.5]} 73. Kg5
{[%clk 0:00:15.9]} 73... g1=Q+ {[%clk 0:00:16.4]} 74. Kf5 {[%clk 0:00:16.8]} 0-1

[Event "*** SCC Grand Prix: Titled Tuesday Blitz"]
[Site "Chess.com"]
[Date "2020.09.29"]
[Round "3"]
[White "maximnovik"]
[Black "AvitalBor"]
[Result "1/2-1/2"]
[WhiteElo "2521"]
[BlackElo "2776"]
[TimeControl "180+1"]
[EndTime "10:29:04 PDT"]
[Termination "Game drawn by repetition"]

1. d4 {[%clk 0:03:00.9]} 1... Nf6 {[%clk 0:02:59.9]} 2. Bg5 {[%clk 0:02:59.9]}
2... d5 {[%clk 0:02:59.7]} 3. Bxf6 {[%clk 0:02:59.7]} 3... gxf6 {[%clk
0:02:59.7]} 4. e3 {[%clk 0:02:59.6]} 4... c5 {[%clk 0:02:59.9]} 5. c4 {[%clk
0:03:00.1]} 5... cxd4 {[%clk 0:02:53.9]} 6. exd4 {[%clk 0:03:00.1]} 6... Nc6
{[%clk 0:02:53]} 7. Nf3 {[%clk 0:02:57.3]} 7... Bg4 {[%clk 0:02:46.6]} 8. Nc3
{[%clk 0:02:52]} 8... dxc4 {[%clk 0:02:41.5]} 9. Bxc4 {[%clk 0:02:33.6]} 9...
Bxf3 {[%clk 0:02:08.4]} 10. Qxf3 {[%clk 0:02:32.7]} 10... Qxd4 {[%clk
0:02:08.7]} 11. Bb5 {[%clk 0:02:32.7]} 11... Qe5+ {[%clk 0:01:56.8]} 12. Kf1
{[%clk 0:02:32.9]} 12... Qc5 {[%clk 0:01:45.3]} 13. Re1 {[%clk 0:02:12.5]} 13...
Bg7 {[%clk 0:01:29.8]} 14. g3 {[%clk 0:02:12.3]} 14... a6 {[%clk 0:01:24.6]} 15.
Bxc6+ {[%clk 0:02:02.1]} 15... Qxc6 {[%clk 0:01:24.9]} 16. Nd5 {[%clk
0:01:53.5]} 16... e6 {[%clk 0:01:17.4]} 17. Kg2 {[%clk 0:01:52]} 17... Rd8
{[%clk 0:01:12.9]} 18. Ne3 {[%clk 0:01:17.3]} 18... Qxf3+ {[%clk 0:01:07.7]} 19.
Kxf3 {[%clk 0:01:17.7]} 19... O-O {[%clk 0:01:06.7]} 20. Rc1 {[%clk 0:01:14]}
20... Rc8 {[%clk 0:01:06.5]} 21. Rxc8 {[%clk 0:01:13.1]} 21... Rxc8 {[%clk
0:01:06.6]} 22. Rd1 {[%clk 0:01:13.4]} 22... f5 {[%clk 0:01:05.6]} 23. b3 {[%clk
0:01:12.5]} 23... Rc7 {[%clk 0:01:00.2]} 24. Rd8+ {[%clk 0:01:11.3]} 24... Bf8
{[%clk 0:01:00.5]} 25. Nc4 {[%clk 0:00:59.5]} 25... Kg7 {[%clk 0:00:59.5]} 26.
Rb8 {[%clk 0:00:56.6]} 26... Be7 {[%clk 0:00:55.3]} 27. a4 {[%clk 0:00:52.1]}
27... Bb4 {[%clk 0:00:52.3]} 28. Ke2 {[%clk 0:00:47]} 28... Kf6 {[%clk
0:00:48.7]} 29. f4 {[%clk 0:00:46.9]} 29... Bc5 {[%clk 0:00:36.3]} 30. Kf3
{[%clk 0:00:43.7]} 30... Ba7 {[%clk 0:00:33.5]} 31. Ra8 {[%clk 0:00:39.9]} 31...
Bc5 {[%clk 0:00:31]} 32. Rb8 {[%clk 0:00:39.1]} 32... Bd4 {[%clk 0:00:29.6]} 33.
h3 {[%clk 0:00:38.4]} 33... Ke7 {[%clk 0:00:28.1]} 34. g4 {[%clk 0:00:38.2]}
34... fxg4+ {[%clk 0:00:27.9]} 35. hxg4 {[%clk 0:00:38.4]} 35... Kf6 {[%clk
0:00:28.2]} 36. Ke4 {[%clk 0:00:37.7]} 36... Ba7 {[%clk 0:00:27.3]} 37. Ra8
{[%clk 0:00:32.4]} 37... Bc5 {[%clk 0:00:26.8]} 38. Rb8 {[%clk 0:00:26.1]} 38...
h6 {[%clk 0:00:25.3]} 39. Ne5 {[%clk 0:00:24]} 39... Ba7 {[%clk 0:00:19.4]} 40.
Ra8 {[%clk 0:00:22.2]} 40... b5 {[%clk 0:00:19.6]} 41. axb5 {[%clk 0:00:21.1]}
41... axb5 {[%clk 0:00:20.2]} 42. Rg8 {[%clk 0:00:16.9]} 42... Bc5 {[%clk
0:00:17.6]} 43. g5+ {[%clk 0:00:16.6]} 43... hxg5 {[%clk 0:00:17.5]} 44. fxg5+
{[%clk 0:00:16.6]} 44... Ke7 {[%clk 0:00:17.9]} 45. g6 {[%clk 0:00:11.2]} 45...
fxg6 {[%clk 0:00:15.8]} 46. Rxg6 {[%clk 0:00:10.3]} 46... Bd6 {[%clk 0:00:15.5]}
47. Rg7+ {[%clk 0:00:10.2]} 47... Kf6 {[%clk 0:00:15.4]} 48. Rxc7 {[%clk
0:00:08]} 48... Bxc7 {[%clk 0:00:16]} 49. Nc6 {[%clk 0:00:08.1]} 49... Bd6
{[%clk 0:00:14.8]} 50. Nd4 {[%clk 0:00:08]} 50... b4 {[%clk 0:00:14.8]} 51. Nb5
{[%clk 0:00:07.8]} 51... Ke7 {[%clk 0:00:14.9]} 52. Nd4 {[%clk 0:00:07.4]} 52...
Kd7 {[%clk 0:00:15]} 53. Nf3 {[%clk 0:00:07.8]} 53... Bc5 {[%clk 0:00:14.4]} 54.
Ne1 {[%clk 0:00:07.7]} 54... Kc6 {[%clk 0:00:14.2]} 55. Nd3 {[%clk 0:00:08.1]}
55... Be7 {[%clk 0:00:14.4]} 56. Nb2 {[%clk 0:00:08]} 56... Bd6 {[%clk
0:00:14.5]} 57. Nd3 {[%clk 0:00:08.2]} 57... Kb5 {[%clk 0:00:14.5]} 58. Nb2
{[%clk 0:00:08]} 58... Kc5 {[%clk 0:00:14.7]} 59. Nd3+ {[%clk 0:00:08]} 59...
Kc6 {[%clk 0:00:15.1]} 60. Nb2 {[%clk 0:00:08.1]} 60... Kb5 {[%clk 0:00:15.4]}
61. Nd3 {[%clk 0:00:08.3]} 61... Kc6 {[%clk 0:00:15.4]} 62. Nb2 {[%clk
0:00:08.4]} 62... Kd7 {[%clk 0:00:15.9]} 63. Nd3 {[%clk 0:00:08.5]} 63... Ke7
{[%clk 0:00:16.4]} 64. Nb2 {[%clk 0:00:08.6]} 64... Kf6 {[%clk 0:00:16.9]} 65.
Nc4 {[%clk 0:00:08.7]} 65... Bc5 {[%clk 0:00:16.5]} 66. Nb2 {[%clk 0:00:08.2]}
66... Ke7 {[%clk 0:00:08.7]} 67. Nd3 {[%clk 0:00:08]} 67... Kd6 {[%clk
0:00:09.1]} 68. Nb2 {[%clk 0:00:07.9]} 68... Kc6 {[%clk 0:00:07.6]} 69. Nd3
{[%clk 0:00:07.8]} 69... Bd6 {[%clk 0:00:07.4]} 1/2-1/2